bitfinex/quotes_BTCUSD_20240607
["timestamp","ask_amount","ask_price","bid_price","bid_amount"]
[1717781013346,0.141815,70514.0,70510.0,0.014]
[1717781013614,0.141815,70514.0,70511.0,0.29164722]
[1717781013784,0.141815,70514.0,70512.0,0.14722829]
[1717781013987,0.141815,70514.0,70511.0,0.14441893]
[1717781014209,0.141815,70514.0,70513.0,0.014]
[1717781015515,0.141815,70514.0,70511.0,0.14527893]
[1717781015700,0.141815,70514.0,70511.0,0.15980682]
[1717781016283,0.141815,70514.0,70511.0,0.14527893]
[1717781016491,0.11296637,70519.0,70511.0,0.14441893]
[1717781016492,0.141817,70513.0,70511.0,0.14441893]
[1717781016732,0.141817,70513.0,70511.0,0.00086]
[1717781017128,0.141817,70513.0,70512.0,0.00942088]
[1717781017504,0.141817,70513.0,70511.0,0.00086]
[1717781017505,0.31824737,70512.0,70511.0,0.00086]
[1717781017709,0.7667238,70512.0,70511.0,0.01286]
[1717781018062,0.7667238,70512.0,70511.0,0.00086]
[1717781018846,0.8961628,70512.0,70511.0,0.01486]
[1717781019073,0.8961628,70512.0,70511.0,0.00086]
[1717781019575,0.8961628,70512.0,70511.0,0.00486]
[1717781020996,0.8961628,70512.0,70511.0,0.00686]
[1717781021333,0.8961628,70512.0,70511.0,0.00329028]
[1717781021704,0.8961628,70512.0,70511.0,0.00429028]
[1717781021892,0.8961628,70512.0,70511.0,0.001]
[1717781022275,0.8961628,70512.0,70511.0,0.004]
[1717781023129,0.8961628,70512.0,70511.0,0.003]
[1717781024979,0.8961628,70512.0,70511.0,0.00213918]
[1717781025548,0.141843,70500.0,70492.0,0.07222824]
[1717781025747,0.141843,70500.0,70489.0,0.2627]
[1717781025914,0.25480937,70500.0,70489.0,0.2627]
[1717781026611,0.26980937,70500.0,70489.0,0.2627]
[1717781026933,0.26980937,70500.0,70489.0,0.1627]
[1717781027148,0.56137137,70500.0,70487.0,0.0002]
[1717781027587,1.1393828,70500.0,70487.0,0.0002]
[1717781027802,1.1493828,70500.0,70499.0,0.01486]
[1717781028093,1.57748873,70500.0,70499.0,0.02686]
[1717781028567,1.63674534,70500.0,70499.0,0.01354853]
[1717781028828,1.63674534,70500.0,70499.0,0.02454853]
[1717781029055,1.61454537,70500.0,70499.0,0.02454853]
[1717781029274,1.61454537,70500.0,70499.0,0.011]
[1717781029490,1.61454537,70500.0,70499.0,0.025]
[1717781029736,1.59968807,70500.0,70499.0,0.011]
[1717781029968,1.73674471,70500.0,70499.0,0.011]
[1717781030203,1.1415218,70499.0,70487.0,0.0002]
[1717781030421,1.68919671,70499.0,70487.0,0.0002]
[1717781030883,1.72347286,70499.0,70487.0,0.0002]
[1717781031109,1.77193486,70499.0,70487.0,0.0002]
[1717781031328,1.73765871,70499.0,70487.0,0.0002]
[1717781031856,0.6126758,70487.0,70486.0,5.065e-05]
[1717781032069,1.27663473,70487.0,70486.0,5.065e-05]
[1717781032275,1.27663473,70487.0,70486.0,0.00988379]
[1717781032633,1.27663473,70487.0,70486.0,5.065e-05]
[1717781033420,1.27663473,70487.0,70486.0,0.01205065]
[1717781034757,1.57037473,70487.0,70486.0,0.01205065]
[1717781034969,1.67037473,70487.0,70486.0,0.01205065]
[1717781035405,1.67137473,70487.0,70486.0,0.01905065]
[1717781036417,1.67137473,70487.0,70486.0,0.00705065]
[1717781036583,1.67137473,70487.0,70486.0,0.01605065]
[1717781037392,0.8579838,70484.0,70483.0,0.31860038]
[1717781037592,1.38926473,70484.0,70483.0,0.31860038]
[1717781037835,1.38926473,70484.0,70483.0,0.31360038]
[1717781037971,1.67301673,70484.0,70483.0,0.31360038]
[1717781039509,1.82721673,70484.0,70483.0,0.31360038]
[1717781039714,1.82721673,70484.0,70483.0,0.32322168]
[1717781039876,1.82721673,70484.0,70483.0,0.31660038]
[1717781040287,1.88402573,70484.0,70483.0,0.31660038]
[1717781040731,1.88402573,70484.0,70483.0,0.32060038]
[1717781041079,1.23636655,70484.0,70483.0,0.32060038]
[1717781041279,1.44627373,70484.0,70483.0,0.32060038]
[1717781041572,1.33127373,70484.0,70483.0,0.31760038]
[1717781041777,1.33127373,70484.0,70483.0,0.32422168]
[1717781041778,1.44627373,70484.0,70483.0,0.32422168]
[1717781041961,1.45627373,70484.0,70483.0,0.32422168]
[1717781042163,1.74002573,70484.0,70483.0,0.31860038]
[1717781043694,1.44627373,70484.0,70483.0,0.31860038]
[1717781044141,1.19767373,70484.0,70483.0,0.31860038]
[1717781044382,1.18267373,70484.0,70483.0,0.31860038]
[1717781044581,1.18267373,70484.0,70483.0,0.32522168]
[1717781044582,1.19767373,70484.0,70483.0,0.32522168]
[1717781046209,1.18267373,70484.0,70483.0,0.32522168]
[1717781046432,1.19767373,70484.0,70483.0,0.32522168]
[1717781046771,0.82528843,70484.0,70483.0,0.32522168]
[1717781046950,0.76847943,70484.0,70483.0,0.32522168]
[1717781047091,0.76847943,70484.0,70483.0,0.47254026]
[1717781047926,0.76847943,70484.0,70483.0,0.46754026]
[1717781048361,0.8824458,70484.0,70483.0,0.47854026]
[1717781048549,0.76947943,70484.0,70483.0,0.47854026]
[1717781048754,0.48472743,70484.0,70483.0,0.46754026]
[1717781048966,0.48472743,70484.0,70483.0,0.46753145]
[1717781049199,0.48572743,70484.0,70483.0,0.47853145]
[1717781049399,0.143876,70484.0,70483.0,0.65613145]
[1717781049608,0.142876,70484.0,70483.0,0.64513145]
[1717781049810,0.141876,70484.0,70483.0,0.63113145]
[1717781050238,0.142876,70484.0,70483.0,0.64513145]
[1717781050641,0.01063743,70489.0,70483.0,0.63113145]
[1717781050841,0.4782,70499.0,70484.0,0.2917287]
[1717781050842,0.141871,70487.0,70484.0,0.2917287]
[1717781051054,0.141871,70487.0,70485.0,0.14730977]
[1717781051271,0.141863,70491.0,70487.0,0.0796]
[1717781051539,0.10525,70500.0,70490.0,0.2302]
[1717781051540,0.141845,70500.0,70490.0,0.2302]
[1717781051732,0.141845,70500.0,70491.0,0.2917287]
[1717781051944,0.141845,70500.0,70492.0,0.52981678]
[1717781052146,0.141845,70500.0,70493.0,0.02131217]
[1717781052376,0.141846,70499.0,70493.0,0.0286083]
[1717781052860,0.141846,70499.0,70494.0,0.14730977]
[1717781053065,0.141848,70498.0,70495.0,0.14730977]
[1717781053273,0.141848,70498.0,70496.0,0.14730977]
[1717781053488,0.141848,70498.0,70497.0,0.14730977]
[1717781053700,0.141848,70498.0,70497.0,0.15457205]
[1717781054361,0.15247943,70501.0,70497.0,0.15457205]
[1717781054594,0.141842,70501.0,70499.0,0.0776]
[1717781054869,0.01063743,70505.0,70500.0,0.1649]
[1717781055084,0.01063743,70505.0,70500.0,0.31939676]
[1717781055315,0.141836,70504.0,70500.0,0.17213893]
[1717781056379,0.141836,70504.0,70500.0,0.18113893]
[1717781056998,0.141841,70501.0,70500.0,0.18113893]
[1717781057182,0.25480737,70501.0,70500.0,0.01623893]
[1717781057385,0.141841,70501.0,70500.0,0.01623893]
[1717781057512,0.141841,70501.0,70500.0,0.00723893]
[1717781057711,0.141841,70501.0,70495.0,0.1609]
[1717781057712,0.141846,70499.0,70495.0,0.1609]
[1717781058135,0.11296637,70502.0,70482.0,0.08562253]
[1717781058136,0.55687767,70497.0,70496.0,0.00725507]
[1717781058350,0.55687767,70497.0,70483.0,0.31360038]
[1717781058351,0.6126938,70484.0,70483.0,0.31360038]
[1717781058553,0.75711273,70484.0,70483.0,0.31360038]
[1717781059821,0.48472743,70484.0,70483.0,0.31360038]
[1717781060029,0.6126938,70484.0,70483.0,0.31360038]
[1717781060510,0.5976938,70484.0,70483.0,0.31360038]
[1717781060656,0.2654798,70484.0,70483.0,0.31360038]
[1717781060877,0.2654798,70484.0,70483.0,0.33160038]
[1717781061079,0.2804798,70484.0,70483.0,0.32360038]
[1717781061249,0.2804798,70484.0,70483.0,0.31360038]
[1717781061451,0.15251343,70484.0,70483.0,0.32460038]
[1717781061646,0.15251343,70484.0,70483.0,0.33160038]
[1717781061847,0.2804798,70484.0,70483.0,0.33160038]
[1717781062163,0.2804798,70484.0,70483.0,0.31360038]
[1717781062164,1.04086473,70484.0,70483.0,0.31360038]
[1717781062362,1.28056473,70484.0,70483.0,0.31360038]
[1717781062586,1.28056473,70484.0,70483.0,0.31560038]
[1717781063571,1.28056473,70484.0,70483.0,0.32360038]
[1717781063905,1.28056473,70484.0,70483.0,0.32160038]
[1717781064324,1.28056473,70484.0,70483.0,0.32360038]
[1717781064503,1.28056473,70484.0,70483.0,0.31560038]
[1717781064716,1.1361458,70484.0,70483.0,0.31360038]
[1717781064912,1.1361458,70484.0,70483.0,0.31860038]
[1717781065098,1.1361458,70484.0,70483.0,0.31460038]
[1717781065571,1.1361458,70484.0,70483.0,0.31360038]
[1717781065914,1.28056473,70484.0,70483.0,0.31360038]
[1717781066115,1.39056473,70484.0,70483.0,0.31360038]
[1717781066432,1.38056473,70484.0,70483.0,0.31360038]
[1717781066844,1.38056473,70484.0,70483.0,0.31860038]
[1717781066845,0.9964458,70484.0,70483.0,0.31860038]
[1717781067042,1.14086473,70484.0,70483.0,0.31860038]
[1717781067245,1.14086473,70484.0,70483.0,0.31360038]
[1717781067445,1.14086473,70484.0,70483.0,0.31560038]
[1717781067779,0.9964458,70484.0,70483.0,0.31560038]
[1717781068127,1.1536458,70484.0,70483.0,0.31560038]
[1717781068333,1.58181673,70484.0,70483.0,0.31560038]
[1717781068851,1.59181673,70484.0,70483.0,0.31560038]
[1717781069629,1.67151673,70484.0,70483.0,0.31560038]
[1717781069920,1.84792224,70484.0,70483.0,0.31560038]
[1717781070607,2.80468124,70484.0,70483.0,0.31560038]
[1717781070741,2.68740524,70484.0,70483.0,0.31560038]
[1717781070962,2.32988524,70484.0,70483.0,0.31560038]
[1717781071167,2.61263724,70484.0,70483.0,0.31560038]
[1717781071361,2.61263724,70484.0,70483.0,0.31360038]
[1717781071623,2.81363724,70484.0,70483.0,0.31560038]
[1717781071863,1.33141637,70480.0,70479.0,1e-07]
[1717781072011,1.69047824,70480.0,70479.0,1e-07]
[1717781072996,1.95947824,70480.0,70479.0,1e-07]
[1717781074956,1.96947824,70480.0,70479.0,0.0010001]
[1717781075203,2.12367824,70480.0,70479.0,0.0010001]
[1717781075424,2.12367824,70480.0,70479.0,1e-07]
[1717781075425,2.91685324,70480.0,70479.0,1e-07]
[1717781075849,2.91985324,70480.0,70479.0,0.0010001]
[1717781076026,2.12367824,70480.0,70479.0,0.0010001]
[1717781076441,5.15534624,70480.0,70479.0,0.0010001]
[1717781076557,2.12367824,70480.0,70479.0,0.0010001]
[1717781076777,5.17534624,70480.0,70479.0,0.0010001]
[1717781077241,5.16768124,70480.0,70479.0,0.0010001]
[1717781077644,5.15532024,70480.0,70479.0,0.0010001]
[1717781077791,5.18096623,70480.0,70479.0,0.0010001]
[1717781078832,4.59902131,70480.0,70479.0,0.0010001]
[1717781079041,1.72587824,70480.0,70479.0,0.0010001]
[1717781079882,1.88007824,70480.0,70479.0,0.0010001]
[1717781080514,1.89007824,70480.0,70479.0,0.0018601]
[1717781080923,1.89007824,70480.0,70479.0,1e-07]
[1717781081127,2.05207824,70480.0,70479.0,1e-07]
[1717781081526,2.13217824,70480.0,70479.0,1e-07]
[1717781081774,2.33217824,70480.0,70479.0,1e-07]
[1717781081979,2.13217824,70480.0,70479.0,1e-07]
[1717781082191,2.61594624,70480.0,70479.0,1e-07]
[1717781082406,1.5903238,70475.0,70474.0,1e-07]
[1717781082635,1.85694824,70475.0,70474.0,1e-07]
[1717781083310,1.93674824,70475.0,70474.0,1e-07]
[1717781083724,1.93974824,70475.0,70474.0,1e-07]
[1717781083967,1.93974824,70475.0,70450.0,1.0415666]
[1717781083968,0.4809508,70451.0,70450.0,0.8816666]
[1717781084191,2.03088173,70451.0,70450.0,0.07609119]
[1717781084409,2.03088173,70451.0,70429.0,0.0002]
[1717781084410,0.8645528,70441.0,70429.0,0.0002]
[1717781084624,1.3249012,70441.0,70429.0,0.0002]
[1717781084842,1.3069478,70434.0,70429.0,0.0002]
[1717781085057,1.52433434,70434.0,70429.0,0.0002]
[1717781085270,2.86570237,70434.0,70429.0,0.0002]
[1717781085477,2.71150237,70434.0,70429.0,0.0002]
[1717781085688,1.00241337,70425.0,70420.0,0.000284]
[1717781085927,0.2126804,70425.0,70420.0,0.000284]
[1717781086152,0.141995,70425.0,70422.0,0.1539]
[1717781086367,0.141995,70425.0,70424.0,0.0391122]
[1717781086589,0.141995,70425.0,70424.0,0.00053073]
[1717781087023,0.141986,70430.0,70424.0,0.00053073]
[1717781087235,0.012,70434.0,70424.0,0.00053073]
[1717781087236,0.141995,70425.0,70424.0,0.00053073]
[1717781088091,0.142995,70425.0,70424.0,0.00053073]
[1717781088538,0.33587593,70425.0,70424.0,0.00053073]
[1717781088747,0.33587593,70425.0,70424.0,0.00853073]
[1717781088949,0.142995,70425.0,70424.0,0.08833073]
[1717781089164,0.143995,70425.0,70424.0,0.2497922]
[1717781089363,0.002,70425.0,70424.0,0.4835737]
[1717781089613,0.001,70425.0,70424.0,0.5755737]
[1717781090051,0.002,70425.0,70424.0,0.5825737]
[1717781090485,0.001,70425.0,70424.0,0.5825737]
[1717781090896,0.001,70425.0,70424.0,0.5935737]
[1717781091102,0.001,70425.0,70424.0,0.5825737]
[1717781091512,0.001,70425.0,70424.0,0.68360733]
[1717781091719,0.141975,70435.0,70428.0,0.1587]
[1717781091930,0.141975,70435.0,70429.0,0.21872642]
[1717781092143,0.141975,70435.0,70430.0,0.0772]
[1717781092351,0.141965,70440.0,70432.0,0.1517]
[1717781092566,0.048462,70445.0,70432.0,0.1517]
[1717781092784,0.048462,70445.0,70428.0,0.07222824]
[1717781092785,0.141954,70445.0,70439.0,0.1932]
[1717781092995,0.141957,70444.0,70439.0,0.1932]
[1717781093600,0.05909943,70451.0,70438.0,0.0772]
[1717781093803,0.001,70445.0,70438.0,0.0772]
[1717781094118,0.283919,70443.0,70432.0,0.01]
[1717781094288,0.141978,70433.0,70432.0,0.01]
[1717781094464,0.6130008,70433.0,70432.0,0.01]
[1717781094834,0.75741973,70433.0,70432.0,0.01]
[1717781095039,0.25496137,70425.0,70424.0,0.00053073]
[1717781095236,0.141995,70425.0,70424.0,0.00053073]
[1717781095890,0.61886593,70425.0,70424.0,0.00053073]
[1717781096159,0.60241337,70425.0,70424.0,0.00053073]
[1717781096480,0.60241337,70425.0,70424.0,0.02353073]
[1717781097310,1.1468323,70425.0,70424.0,0.02353073]
[1717781097514,1.1318323,70425.0,70424.0,0.02353073]
[1717781097719,1.1468323,70425.0,70424.0,0.02353073]
[1717781097936,1.1468323,70425.0,70424.0,0.00953073]
[1717781098363,0.7468323,70425.0,70424.0,0.00053073]
[1717781098572,0.7468323,70425.0,70424.0,0.02453073]
[1717781098775,0.7468323,70425.0,70424.0,0.01053073]
[1717781099199,0.7468323,70425.0,70424.0,0.00053073]
[1717781099404,0.7318323,70425.0,70424.0,0.01053073]
[1717781099621,0.8980323,70425.0,70424.0,0.02453073]
[1717781099833,0.7468323,70425.0,70424.0,0.02453073]
[1717781100046,0.190457,70425.0,70424.0,0.02453073]
[1717781100458,0.58741337,70425.0,70424.0,0.02453073]
[1717781100663,0.61886593,70425.0,70424.0,0.02453073]
[1717781101081,0.19030455,70417.0,70416.0,0.12151473]
[1717781101284,0.190475,70416.0,70414.0,0.0752]
[1717781102177,0.190475,70416.0,70413.0,0.1]
[1717781102815,0.190475,70416.0,70415.0,0.03262]
[1717781103192,0.190475,70416.0,70415.0,0.00862]
[1717781103349,0.30344137,70416.0,70415.0,0.00862]
[1717781103553,0.190475,70416.0,70415.0,0.02262]
[1717781103981,0.30344137,70416.0,70415.0,0.02262]
[1717781104707,0.191475,70416.0,70415.0,0.02662]
[1717781105511,0.30444137,70416.0,70415.0,0.01262]
[1717781105709,0.192475,70416.0,70415.0,0.01262]
[1717781105876,0.30544137,70416.0,70415.0,0.01262]
[1717781106088,1.04254973,70416.0,70415.0,0.01262]
[1717781106294,1.20504973,70416.0,70415.0,0.01262]
[1717781106538,1.20604973,70416.0,70415.0,0.01262]
[1717781106747,0.87349337,70416.0,70415.0,0.01262]
[1717781106910,0.760527,70416.0,70415.0,0.01262]
[1717781107270,0.759527,70416.0,70415.0,0.01262]
[1717781107617,0.758527,70416.0,70415.0,0.00862]
[1717781108022,0.88649337,70416.0,70415.0,0.01262]
[1717781108223,0.87149337,70416.0,70415.0,0.01262]
[1717781108646,0.87149337,70416.0,70415.0,0.01962]
[1717781108647,0.88749337,70416.0,70415.0,0.01962]
[1717781109468,0.759527,70416.0,70415.0,0.01962]
[1717781109671,0.475501,70416.0,70415.0,0.16709054]
[1717781110095,0.58846737,70416.0,70415.0,0.16709054]
[1717781110306,0.58846737,70416.0,70415.0,0.01962]
[1717781110307,1.72657573,70416.0,70415.0,0.01962]
[1717781110478,2.11397573,70416.0,70415.0,0.01962]
[1717781110677,1.95927573,70416.0,70415.0,0.01962]
[1717781111506,1.18264973,70416.0,70415.0,0.01962]
[1717781111707,0.142013,70416.0,70415.0,0.15773787]
[1717781111912,0.142013,70416.0,70415.0,0.15373787]
[1717781112119,0.001,70416.0,70415.0,0.15973787]
[1717781112328,0.283979,70428.0,70415.0,0.66980466]
[1717781112531,0.141997,70424.0,70423.0,0.07222824]
[1717781112733,0.141997,70424.0,70423.0,0.14747753]
[1717781112942,0.58741937,70424.0,70423.0,0.14747753]
[1717781113156,0.87141337,70424.0,70423.0,0.14747753]
[1717781113359,0.87141337,70424.0,70415.0,0.01662]
[1717781113360,0.143013,70416.0,70415.0,0.01662]
[1717781113562,0.143013,70416.0,70415.0,0.16409398]
[1717781114375,0.427039,70416.0,70415.0,0.16409398]
[1717781114586,0.428039,70416.0,70415.0,0.17309398]
[1717781114824,0.476501,70416.0,70415.0,0.17309398]
[1717781115061,0.58946737,70416.0,70415.0,0.17309398]
[1717781115394,0.58846737,70416.0,70415.0,0.16409398]
[1717781115629,0.142013,70416.0,70415.0,0.15609398]
[1717781115842,0.143013,70416.0,70415.0,0.16309398]
[1717781116068,0.143013,70416.0,70415.0,0.40891557]
[1717781116279,0.143013,70416.0,70415.0,0.16309398]
[1717781116942,0.144013,70416.0,70415.0,0.31551291]
[1717781117160,0.476501,70416.0,70415.0,0.17109398]
[1717781117404,1.44254973,70416.0,70415.0,0.01562]
[1717781117844,1.44154973,70416.0,70415.0,0.00862]
[1717781118284,1.44254973,70416.0,70415.0,0.01562]
[1717781118968,1.44654973,70416.0,70415.0,0.00862]
[1717781119441,1.44854973,70416.0,70415.0,0.00862]
[1717781119643,1.73257573,70416.0,70415.0,0.00862]
[1717781120079,1.47077681,70416.0,70415.0,0.00862]
[1717781120548,1.76480281,70416.0,70415.0,0.00862]
[1717781120772,1.55607681,70416.0,70415.0,0.00862]
[1717781121215,1.54607681,70416.0,70415.0,0.00862]
[1717781121673,1.83010281,70416.0,70415.0,0.00862]
[1717781121911,1.55607681,70416.0,70415.0,0.00862]
[1717781122113,1.47077681,70416.0,70415.0,0.00862]
[1717781122874,1.76480281,70416.0,70415.0,0.00862]
[1717781123093,1.92690281,70416.0,70415.0,0.00862]
[1717781124213,1.92690281,70416.0,70412.0,0.00863]
[1717781124214,0.768557,70413.0,70412.0,0.00863]
[1717781124432,0.768557,70413.0,70410.0,4.0]
[1717781124433,0.3390888,70411.0,70410.0,4.0]
[1717781124611,1.35787281,70411.0,70410.0,4.0]
[1717781125503,1.35787281,70411.0,70410.0,3.98525524]
[1717781125710,2.68511374,70411.0,70410.0,3.98525524]
[1717781127131,2.69411374,70411.0,70410.0,3.98625524]
[1717781127383,3.42735974,70411.0,70410.0,3.73549425]
[1717781127616,6.00087912,70411.0,70410.0,3.73649425]
[1717781128235,5.55167912,70411.0,70410.0,3.73649425]
[1717781128434,3.48799312,70411.0,70410.0,3.73649425]
[1717781128757,2.71332712,70411.0,70410.0,3.73649425]
[1717781128891,2.72332712,70411.0,70410.0,3.73649425]
[1717781129300,2.71332712,70411.0,70410.0,3.73649425]
[1717781129503,2.52522712,70411.0,70410.0,3.73649425]
[1717781129729,2.50801374,70411.0,70410.0,3.73649425]
[1717781130687,2.27081374,70411.0,70410.0,3.73649425]
[1717781131002,0.81244151,70411.0,70410.0,3.73649425]
[1717781131830,0.80180408,70411.0,70410.0,3.73649425]
[1717781132054,0.81244151,70411.0,70410.0,3.73649425]
[1717781132524,0.46929608,70411.0,70410.0,3.73649425]
[1717781132721,0.163023,70411.0,70410.0,3.73649425]
[1717781133409,0.142023,70411.0,70410.0,3.73449425]
[1717781133814,0.145023,70411.0,70410.0,3.73449425]
[1717781134253,0.142023,70411.0,70410.0,3.73449425]
[1717781134849,0.145023,70411.0,70410.0,3.73449425]
[1717781136464,0.6161348,70411.0,70410.0,3.73449425]
[1717781136639,0.76055373,70411.0,70410.0,3.73449425]
[1717781136843,0.78278228,70411.0,70410.0,3.73449425]
[1717781137045,1.06682828,70411.0,70410.0,3.73449425]
[1717781139178,1.07682828,70411.0,70410.0,3.73449425]
[1717781139382,1.06682828,70411.0,70410.0,3.73449425]
[1717781140142,0.93886191,70411.0,70410.0,3.73449425]
[1717781140370,0.92240935,70411.0,70410.0,3.73449425]
[1717781140577,1.06682828,70411.0,70410.0,3.73449425]
[1717781140829,1.07682828,70411.0,70410.0,3.73449425]
[1717781141292,1.06682828,70411.0,70410.0,3.73449425]
[1717781142113,0.45129755,70411.0,70410.0,3.73449425]
[1717781142316,0.16725155,70411.0,70410.0,3.92039425]
[1717781142683,0.003,70411.0,70410.0,3.92039425]
[1717781142908,0.145023,70411.0,70410.0,3.92039425]
[1717781143649,0.11296637,70418.0,70410.0,3.92039425]
[1717781143854,0.001,70411.0,70410.0,3.92739425]
[1717781144054,0.143023,70411.0,70410.0,3.92739425]
[1717781144581,0.143023,70411.0,70410.0,3.92039425]
[1717781144582,0.142023,70411.0,70410.0,3.92039425]
[1717781144749,0.143023,70411.0,70410.0,3.93539425]
[1717781145144,0.143023,70411.0,70410.0,3.92839425]
[1717781145361,0.143023,70411.0,70410.0,3.93539425]
[1717781145585,0.144023,70411.0,70410.0,3.93539425]
[1717781145783,0.144023,70411.0,70410.0,3.92839425]
[1717781145984,0.143023,70411.0,70410.0,3.92039425]
[1717781146387,0.144023,70411.0,70410.0,3.92739425]
[1717781146589,0.002,70411.0,70410.0,4.07181318]
[1717781146982,0.001,70411.0,70410.0,4.06481318]
[1717781147481,0.144023,70411.0,70410.0,3.92739425]
[1717781148261,0.143023,70411.0,70410.0,3.92039425]
[1717781148583,0.144023,70411.0,70410.0,3.92739425]
[1717781149332,0.144023,70411.0,70410.0,4.07251212]
[1717781149757,0.145023,70411.0,70410.0,4.07951212]
[1717781150161,0.145023,70411.0,70410.0,3.93439425]
[1717781150712,0.003,70411.0,70410.0,4.23341318]
[1717781151242,0.145023,70411.0,70410.0,4.07881318]
[1717781151449,0.142023,70411.0,70410.0,4.06481318]
[1717781151662,0.143023,70411.0,70410.0,4.07381318]
[1717781151997,0.144023,70411.0,70410.0,4.07381318]
[1717781152202,0.143023,70411.0,70410.0,4.07381318]
[1717781152407,0.144023,70411.0,70410.0,4.08081318]
[1717781153161,0.143023,70411.0,70410.0,4.07181318]
[1717781153380,0.144023,70411.0,70410.0,4.07981318]
[1717781153752,0.143023,70411.0,70410.0,4.07281318]
[1717781154083,0.142023,70411.0,70410.0,4.06481318]
[1717781154656,0.142023,70411.0,70410.0,4.07581318]
[1717781154859,0.142023,70411.0,70410.0,4.08381318]
[1717781155024,0.142023,70411.0,70410.0,4.07281318]
[1717781155440,0.142023,70411.0,70410.0,4.08381318]
[1717781155644,0.142023,70411.0,70410.0,4.07281318]
[1717781156470,0.142017,70414.0,70410.0,4.07281318]
[1717781156681,0.142017,70414.0,70411.0,0.14441893]
[1717781156890,0.01063743,70425.0,70411.0,0.14441893]
[1717781157091,0.14202,70413.0,70411.0,0.14441893]
[1717781157907,0.14202,70413.0,70411.0,0.15641893]
[1717781158103,0.14202,70413.0,70411.0,0.14441893]
[1717781158309,0.14202,70413.0,70411.0,0.15241893]
[1717781158527,0.14302,70413.0,70411.0,0.16441893]
[1717781158869,0.142021,70412.0,70411.0,0.15241893]
[1717781159240,0.142021,70412.0,70411.0,0.16441893]
[1717781159600,0.142021,70412.0,70411.0,0.15641893]
[1717781160019,0.142021,70412.0,70411.0,0.16441893]
[1717781160605,0.142021,70412.0,70411.0,0.15641893]
[1717781160848,0.143021,70412.0,70411.0,0.15141893]
[1717781161025,0.143021,70412.0,70411.0,0.16341893]
[1717781161497,0.143021,70412.0,70411.0,0.15141893]
[1717781162087,0.142021,70412.0,70411.0,0.14441893]
[1717781162491,0.143021,70412.0,70411.0,0.15341893]
[1717781163501,0.143021,70412.0,70411.0,0.15941893]
[1717781163706,0.001,70412.0,70411.0,0.15941893]
[1717781164347,0.000946,70428.0,70421.0,0.08936257]
[1717781164552,0.02222196,70427.0,70423.0,0.1663]
[1717781164758,0.142936,70428.0,70423.0,0.1663]
[1717781164759,0.000946,70428.0,70424.0,0.14441893]
[1717781164957,0.000946,70428.0,70425.0,0.04871151]
[1717781165189,0.000946,70428.0,70426.0,0.29901893]
[1717781165390,0.000946,70428.0,70426.0,0.30438508]
[1717781165646,0.000946,70428.0,70427.0,0.3279342]
[1717781165846,0.141962,70441.0,70431.0,0.1763962]
[1717781166046,0.141962,70441.0,70434.0,0.1546]
[1717781166254,0.02224901,70452.0,70437.0,0.2407]
[1717781166456,0.141954,70445.0,70440.0,0.1546]
[1717781166662,0.141954,70445.0,70441.0,0.14441893]
[1717781166863,0.141954,70445.0,70442.0,0.05397189]
[1717781167076,0.141954,70445.0,70443.0,0.14441893]
[1717781167978,0.141948,70448.0,70443.0,0.14441893]
[1717781168178,0.16978837,70461.0,70443.0,0.14441893]
[1717781168179,0.01063743,70463.0,70447.0,0.1546]
[1717781168380,0.141946,70449.0,70448.0,0.04883815]
[1717781168492,0.141946,70449.0,70443.0,0.08936257]
[1717781168493,0.141946,70449.0,70444.0,0.1]
[1717781168698,0.141946,70449.0,70445.0,0.14441893]
[1717781169422,0.141938,70453.0,70445.0,0.14441893]
[1717781170241,0.141938,70453.0,70445.0,0.28299056]
[1717781170533,0.29446143,70467.0,70451.0,0.2326]
[1717781170746,0.141936,70455.0,70452.0,0.19267519]
[1717781170930,0.141938,70453.0,70452.0,0.04825626]
[1717781171137,0.141941,70452.0,70448.0,0.1]
[1717781171354,0.141941,70452.0,70448.0,0.24441893]
[1717781171786,0.141943,70451.0,70448.0,0.1]
[1717781172222,0.01063743,70465.0,70448.0,0.15341893]
[1717781172223,0.141936,70455.0,70448.0,0.15341893]
[1717781172477,0.141936,70455.0,70449.0,0.15844151]
[1717781172815,0.141936,70455.0,70450.0,0.14441893]
[1717781173148,0.11296637,70461.0,70450.0,0.29901893]
[1717781173353,0.01063743,70465.0,70450.0,0.14441893]
[1717781173354,0.1236038,70465.0,70450.0,0.14441893]
[1717781173568,0.1236038,70465.0,70449.0,0.1]
[1717781173569,0.141942,70452.0,70449.0,0.1]
[1717781173766,0.11296637,70455.0,70448.0,0.011]
[1717781174135,0.11296637,70457.0,70448.0,0.011]
[1717781174268,0.141935,70455.0,70449.0,0.14441893]
[1717781174474,0.141938,70453.0,70449.0,0.14441893]
[1717781174819,0.141938,70453.0,70450.0,0.02807815]
[1717781175025,0.141938,70453.0,70451.0,0.14441893]
[1717781175152,0.141933,70456.0,70452.0,0.0771]
[1717781175359,0.01063743,70465.0,70454.0,0.1569]
[1717781175360,0.141934,70455.0,70454.0,0.1569]
[1717781175556,0.141934,70455.0,70452.0,0.0771]
[1717781175557,0.141938,70453.0,70452.0,0.0771]
[1717781175767,0.141944,70450.0,70449.0,0.103]
[1717781175971,0.141944,70450.0,70449.0,0.003]
[1717781176169,0.11296637,70461.0,70450.0,0.004]
[1717781176394,0.11296637,70462.0,70451.0,0.14441893]
[1717781176628,0.141938,70454.0,70452.0,0.1502]
[1717781176967,0.141938,70453.0,70452.0,0.29461893]
[1717781177146,0.141938,70453.0,70452.0,0.32157281]
[1717781177479,0.11296637,70468.0,70452.0,0.32157281]
[1717781177689,0.11296637,70468.0,70453.0,0.14441893]
[1717781178062,0.000946,70455.0,70454.0,0.03485491]
[1717781178293,0.14288,70455.0,70454.0,0.17927384]
[1717781178522,0.14288,70455.0,70406.0,0.04248554]
[1717781178523,0.11296637,70452.0,70437.0,0.08936257]
[1717781178713,0.11296637,70440.0,70429.0,0.08936257]
[1717781178918,0.11296637,70440.0,70427.0,0.00086]
[1717781178919,0.11296637,70435.0,70427.0,0.09022257]
[1717781179122,0.141988,70428.0,70427.0,0.00086]
[1717781179978,0.141995,70425.0,70424.0,0.08936257]
[1717781180182,0.141995,70425.0,70424.0,0.2337815]
[1717781181063,0.141986,70430.0,70425.0,0.1575]
[1717781181269,0.141975,70435.0,70432.0,0.07222824]
[1717781181469,0.141975,70435.0,70434.0,0.0771]
[1717781181704,0.11296637,70432.0,70427.0,0.0804]
[1717781181851,0.14199,70427.0,70426.0,0.1]